[Event "6th Cesme Open-A 2018"]
[Site "Cesme"]
[Date "2018.06.29"]
[Round "6.13"]
[White "Barsov, Alexei"]
[Black "Demirbag, Alihan"]
[Result "1-0"]
[ECO "A70"]
[WhiteElo "2371"]
[BlackElo "2103"]
[Annotator "NA"]
[PlyCount "187"]
[EventDate "2018.06.26"]
[EventType "swiss"]
[EventCountry "TUR"]
[SourceTitle "playchess.com"]
[Source "ChessBase"]
[SourceQuality "1"]
[TimeControl "5400+30"]

1. d4 {[%emt 0:04:30]} Nf6 {[%emt 0:01:00]} 2. c4 {[%emt 0:00:30]} c5 {[%emt 0:00:30]} 3. d5 {[%emt 0:00:30]} e6 {[%emt 0:00:30]} 4. Nc3 {[%emt 0:00:30]} exd5 {[%emt 0:00:00]} 5. cxd5 {[%emt 0:00:00]} d6 {[%emt 0:00:00]} 6. e4 {[%emt 0:00:00]} g6 {[%emt 0:00:00]} 7. Bd3 {[%emt 0:00:00]} Bg7 {[%emt 0:00:00]} 8. h3 {[%emt 0:00:00]} O-O {[%emt 0:00:00]} 9. Nf3 {[%emt 0:00:00]} Re8 {[%emt 0:00:00]} 10. O-O {[%emt 0:00:00]} c4 {[%emt 0:01:30]} 11. Bc2 {[%emt 0:00:30]} a6 {[%emt 0:00:00] A70: Modern Benoni: 6 e4 g6 7 Nf3} 12. a4 {[%emt 0:03:30]} Qc7 {[%emt 0:04:00]} (12... Nbd7 13. Re1 Rb8 14. Bf4 Qc7 15. Qd2 b5 16. axb5 axb5 17. Nd4 Rb6 18. Ndxb5 Qb8 19. Nxd6 Rxd6 20. e5 Nxe5 21. Bxe5 Rxe5 22. Rxe5 {1-0 (34) Akobian,V (2606)-Ghaem Maghami,E (2599) Beijing 2008}) 13. Be3 {[%emt 0:21:30]} Nbd7 {[%emt 0:04:30]} 14. Bd4 {[%emt 0:02:30]} Nh5 $146 {[%emt 0:25:30]} ({Predecessor:} 14... b6 15. Nd2 Bb7 16. Rb1 Rac8 17. Re1 Re7 18. b3 {½-½ (18) Blagojevic,D (2483)-Kriebel,T (2484) Konya 2016}) 15. Bxg7 {[%emt 0:07:30]} Nxg7 {[%emt 0:04:30]} 16. a5 {[%emt 0:01:30]} Ne5 {[%emt 0:04:30]} 17. Nxe5 {[%emt 0:03:30]} Rxe5 {[%emt 0:05:30]} 18. Qd4 {[%emt 0:04:30]} Bd7 {[%emt 0:03:30]} 19. Ba4 {[%emt 0:05:30]} Rc8 {[%emt 0:06:30]} 20. Bxd7 {[%emt 0:20:30]} Qxd7 {[%emt 0:02:30]} 21. Ra4 {[%emt 0:00:30]} Qc7 {[%emt 0:04:30]} 22. Rb4 {[%emt 0:10:39]} Re7 {[%emt 0:02:30]} (22... f5 $142) 23. Ra1 {[%emt 0:01:28]} Qc5 {[%emt 0:01:30]} 24. Qxc5 {[%emt 0:03:15]} Rxc5 {[%emt 0:00:00]} 25. Raa4 {[%emt 0:03:50]} Rec7 {[%emt 0:01:00]} 26. Rb6 {[%emt 0:02:13]} Ne8 {[%emt 0:01:30]} 27. f4 {[%emt 0:00:17]} f6 {[%emt 0:04:30]} 28. Kf2 {[%emt 0:00:21]} h5 {[%emt 0:02:30]} 29. h4 {[%emt 0:00:43]} Kg7 {[%emt 0:02:59]} 30. Ke3 {[%emt 0:00:18]} Kh6 {[%emt 0:00:44]} 31. Kd4 {[%emt 0:00:23]} Re7 {[%emt 0:03:01]} 32. g3 {[%emt 0:02:23]} Kg7 {[%emt 0:01:52]} 33. Rab4 {[%emt 0:00:56]} Rxa5 {[%emt 0:00:14]} 34. Rxb7 {[%emt 0:00:00]} Kf8 {[%emt 0:01:18]} 35. Rxe7 {[%emt 0:02:07]} Kxe7 {[%emt 0:00:30]} 36. Rb7+ {[%emt 0:00:30]} Kd8 {[%emt 0:00:30]} 37. Kxc4 {[%emt 0:00:30]} Ra1 {[%emt 0:00:30]} 38. Ne2 {[%emt 0:00:30]} Kc8 {[%emt 0:00:30]} 39. Re7 {[%emt 0:00:30]} Kd8 {[%emt 0:00:30]} 40. Rf7 {[%emt 0:00:30]} Re1 {[%emt 0:00:30]} 41. Nd4 {[%emt 0:00:30]} Rxe4 {[%emt 0:00:30]} 42. Kd3 {[%emt 0:00:30]} f5 {[%emt 0:00:30]} 43. Nc6+ {[%emt 0:00:30]} Kc8 {[%emt 0:00:30]} 44. Ne7+ {[%emt 0:00:30]} Kd8 {[%emt 0:00:30]} 45. Nc6+ {[%emt 0:00:30]} Kc8 {[%emt 0:00:30]} 46. Ne7+ {[%emt 0:00:30]} Kd8 {[%emt 0:00:30]} 47. Nxg6 {[%emt 0:00:30]} Rb4 {[%emt 0:00:30]} 48. Kc2 {[%emt 0:00:30]} Rc4+ {[%emt 0:00:30]} 49. Kb1 {[%emt 0:00:30]} Re4 {[%emt 0:00:30]} 50. Rxf5 {[%emt 0:00:30]} Re3 {[%emt 0:00:30]} 51. Rxh5 {[%emt 0:00:30]} Rxg3 {[%emt 0:00:30]} 52. Rg5 {[%emt 0:00:30]} Rh3 {[%emt 0:00:30]} 53. b4 {[%emt 0:00:30]} Nf6 {[%emt 0:00:30]} 54. Kc2 {[%emt 0:00:30]} Ke8 {[%emt 0:00:30]} 55. Rf5 {[%emt 0:00:30]} Kf7 {[%emt 0:00:30]} 56. Ne5+ {[%emt 0:00:30]} Kg7 {[%emt 0:00:30]} 57. Rg5+ {[%emt 0:00:30]} Kh7 {[%emt 0:00:30]} 58. Nf7 {[%emt 0:00:30]} Rxh4 {[%emt 0:00:30]} 59. Rf5 {[%emt 0:00:30]} Nh5 {[%emt 0:00:30]} 60. Nxd6 {[%emt 0:00:30]} Nxf4 {[%emt 0:00:30]} 61. Kb3 {[%emt 0:00:30]} Kg6 {[%emt 0:00:30]} 62. Re5 {[%emt 0:01:05]} Rh1 {[%emt 0:12:10]} 63. Ne4 {[%emt 0:00:29]} Rb1+ $18 {[%emt 0:01:33]} 64. Kc3 {[%emt 0:00:01]} Rc1+ {[%emt 0:00:12]} 65. Kd4 {[%emt 0:00:58]} Rd1+ {[%emt 0:00:25]} 66. Kc4 {[%emt 0:00:30]} Rc1+ {[%emt 0:00:07]} 67. Nc3 {[%emt 0:00:37]} Kf6 {[%emt 0:00:17]} 68. Re8 {[%emt 0:00:23]} Nxd5 {[%emt 0:01:25]} 69. Kxd5 {[%emt 0:00:30]} Rxc3 {[%emt 0:00:00]} 70. Re6+ {[%emt 0:00:20]} Kf7 {[%emt 0:00:24]} 71. Rxa6 {[%emt 0:00:30]} Ke7 {[%emt 0:00:00]} 72. Rc6 {[%emt 0:00:18]} Rb3 {[%emt 0:00:48]} 73. Kc5 {[%emt 0:00:15]} Kd7 {[%emt 0:00:27]} 74. b5 {[%emt 0:00:15]} Rb1 {[%emt 0:02:39]} 75. Kb6 {[%emt 0:00:37]} Rb2 {[%emt 0:00:30]} 76. Rc1 {[%emt 0:00:00]} Rb3 {[%emt 0:00:36]} 77. Ka6 {[%emt 0:00:20]} Ra3+ {[%emt 0:00:30]} 78. Kb7 {[%emt 0:00:00]} Rb3 {[%emt 0:00:36]} 79. b6 {[%emt 0:00:00]} Rb2 {[%emt 0:00:38]} 80. Ka7 {[%emt 0:00:10]} Ra2+ {[%emt 0:00:30]} 81. Kb8 {[%emt 0:00:00]} Rb2 {[%emt 0:00:00]} 82. b7 {[%emt 0:00:00]} Ra2 {[%emt 0:00:36]} 83. Rd1+ {[%emt 0:00:11]} Ke7 {[%emt 0:00:00]} 84. Rd4 {[%emt 0:01:06]} Ra1 {[%emt 0:00:00]} 85. Kc7 {[%emt 0:00:40]} Rc1+ {[%emt 0:00:29]} 86. Kb6 {[%emt 0:00:30]} Rb1+ {[%emt 0:00:30]} 87. Kc6 {[%emt 0:00:00]} Ke6 {[%emt 0:00:15]} 88. Rd6+ {[%emt 0:00:00]} Ke7 {[%emt 0:00:22]} 89. Rd5 {[%emt 0:00:20]} Rc1+ {[%emt 0:00:30]} 90. Rc5 {[%emt 0:00:00]} Rb1 {[%emt 0:00:00]} 91. Rb5 {[%emt 0:00:26]} Rc1+ {[%emt 0:00:16]} 92. Kb6 {[%emt 0:00:00]} Kd7 {[%emt 0:00:00]} 93. b8=Q {[%emt 0:00:56]} Rc6+ {[%emt 0:00:00]} 94. Ka5 {[%emt 0:00:00]} 1-0

[Event "6th Cesme Open-A 2018"]
[Site "Cesme"]
[Date "2018.06.29"]
[Round "6.14"]
[White "Pektas, Yigit"]
[Black "Yildiz Kadioglu, Betul Cemre"]
[Result "0-1"]
[ECO "E16"]
[WhiteElo "1975"]
[BlackElo "2323"]
[Annotator "NA"]
[PlyCount "123"]
[EventDate "2018.06.26"]
[EventType "swiss"]
[EventCountry "TUR"]
[SourceTitle "playchess.com"]
[Source "ChessBase"]
[SourceQuality "1"]
[TimeControl "5400+30"]

1. d4 {[%emt 0:00:30]} d5 {[%emt 0:02:00]} 2. Nf3 {[%emt 0:00:00]} Nf6 {[%emt 0:01:30]} 3. c4 {[%emt 0:00:00]} e6 {[%emt 0:00:30]} 4. g3 {[%emt 0:00:00]} Bb4+ {[%emt 0:00:00]} 5. Nbd2 {[%emt 0:00:00]} O-O {[%emt 0:00:00]} 6. Bg2 {[%emt 0:00:30]} b6 {[%emt 0:02:30]} 7. O-O {[%emt 0:00:30]} Bb7 {[%emt 0:00:00]} 8. cxd5 {[%emt 0:03:30]} Bxd5 {[%emt 0:03:00]} 9. a3 {[%emt 0:00:30]} Be7 {[%emt 0:01:30]} 10. Re1 $146 {[%emt 0:01:30] E16: Queen's Indian: 4 g3 Bb7 5 Bg2 Bb4+} ({Predecessor:} 10. Qc2 c5 11. e4 Bb7 12. e5 Nd5 13. dxc5 Bxc5 14. Ne4 Be7 15. Bg5 Nd7 16. Bxe7 Qxe7 17. Neg5 f5 {½-½ (60) Khader,S (2416)-Adly,A (2605) Dubai 2011}) 10... c5 {[%emt 0:05:30]} 11. e4 {[%emt 0:00:30]} Bb7 {[%emt 0:00:30]} 12. e5 {[%emt 0:13:30]} Nfd7 {[%emt 0:04:30]} 13. Nc4 {[%emt 0:05:30]} cxd4 {[%emt 0:08:30]} 14. Qxd4 {[%emt 0:00:30]} Nc5 {[%emt 0:01:30]} 15. Qg4 {[%emt 0:05:30]} Qd3 {[%emt 0:02:30]} 16. Bh6 {[%emt 0:11:30]} Qg6 {[%emt 0:00:30]} 17. Qxg6 {[%emt 0:00:30]} hxg6 {[%emt 0:00:00]} 18. Bg5 {[%emt 0:00:00]} f6 {[%emt 0:08:00]} 19. exf6 {[%emt 0:03:00]} gxf6 {[%emt 0:00:00]} 20. Be3 {[%emt 0:04:30]} Bd5 {[%emt 0:07:00]} 21. Nh4 {[%emt 0:02:30]} Kf7 {[%emt 0:07:30]} 22. Bxc5 {[%emt 0:14:30]} Bxc5 {[%emt 0:13:30]} 23. b4 {[%emt 0:02:30]} Be7 {[%emt 0:07:30]} 24. Bxd5 {[%emt 0:09:30]} exd5 {[%emt 0:00:30]} 25. Ne3 {[%emt 0:00:30]} Rd8 {[%emt 0:04:30]} 26. Red1 {[%emt 0:02:14]} ({Better is} 26. Rac1 $16) 26... d4 {[%emt 0:00:30]} 27. Nc2 $15 {[%emt 0:00:22]} Nc6 {[%emt 0:02:00]} 28. Nf3 {[%emt 0:00:15]} Rd7 {[%emt 0:06:34]} 29. Rd2 {[%emt 0:02:15]} a5 {[%emt 0:01:59]} 30. b5 {[%emt 0:01:01]} Ne5 {[%emt 0:00:02]} 31. Nfxd4 {[%emt 0:01:01]} Bc5 {[%emt 0:06:30]} 32. Kf1 {[%emt 0:08:20]} Rad8 {[%emt 0:01:14]} 33. Rad1 {[%emt 0:00:03]} Nc4 {[%emt 0:00:40]} 34. Rd3 {[%emt 0:00:02]} Nb2 {[%emt 0:03:42]} 35. Nc6 {[%emt 0:00:10]} Nxd3 {[%emt 0:01:02]} 36. Nxd8+ {[%emt 0:00:30]} Rxd8 {[%emt 0:00:00]} 37. Ke2 {[%emt 0:00:29]} Nf4+ {[%emt 0:01:09]} 38. gxf4 {[%emt 0:00:07]} Rxd1 {[%emt 0:00:33]} 39. Kxd1 {[%emt 0:00:30]} Bxf2 {[%emt 0:00:00]} 40. Ke2 {[%emt 0:03:09]} Bg1 {[%emt 0:00:25]} 41. h3 {[%emt 0:00:30]} Ke6 {[%emt 0:00:00]} 42. a4 {[%emt 0:00:00]} Kd5 {[%emt 0:00:33]} 43. Kd3 {[%emt 0:00:00]} Kc5 {[%emt 0:00:46]} 44. Ne1 {[%emt 0:03:54]} Kb4 {[%emt 0:01:10]} 45. h4 {[%emt 0:01:04]} f5 {[%emt 0:00:37]} 46. Nf3 {[%emt 0:00:10]} Bf2 {[%emt 0:00:06]} 47. Ne5 {[%emt 0:01:16]} Bxh4 {[%emt 0:00:30]} 48. Nxg6 {[%emt 0:00:01]} Bf6 {[%emt 0:00:10]} 49. Nf8 {[%emt 0:00:12]} Kxa4 {[%emt 0:01:14]} 50. Kc4 {[%emt 0:00:07]} Ka3 {[%emt 0:00:21]} 51. Nd7 {[%emt 0:00:56]} Bd8 {[%emt 0:00:30]} 52. Ne5 {[%emt 0:00:00]} Kb2 {[%emt 0:00:36]} 53. Nd3+ {[%emt 0:01:44]} Kc2 {[%emt 0:00:03]} 54. Ne5 {[%emt 0:00:17]} Be7 {[%emt 0:00:56]} 55. Nc6 {[%emt 0:00:51]} Bf6 {[%emt 0:00:23]} 56. Na7 {[%emt 0:01:48]} Kb2 {[%emt 0:00:36]} 57. Nc8 {[%emt 0:00:45]} Bd8 {[%emt 0:00:30]} 58. Nd6 {[%emt 0:00:00]} a4 {[%emt 0:00:37]} 59. Kd5 {[%emt 0:00:05]} a3 {[%emt 0:00:30]} 60. Nc4+ {[%emt 0:00:30]} Kb3 {[%emt 0:00:30]} 61. Nd2+ {[%emt 0:00:30]} Kc2 {[%emt 0:00:30]} 62. Nb3 {[%emt 0:00:30]} 0-1

[Event "6th Cesme Open-A 2018"]
[Site "Cesme"]
[Date "2018.06.29"]
[Round "6.15"]
[White "Yasin, Hur"]
[Black "Charkhalashvili, Inga"]
[Result "1/2-1/2"]
[ECO "B13"]
[WhiteElo "1991"]
[BlackElo "2325"]
[Annotator "NA"]
[PlyCount "82"]
[EventDate "2018.06.26"]
[EventType "swiss"]
[EventCountry "TUR"]
[SourceTitle "playchess.com"]
[Source "ChessBase"]
[SourceQuality "1"]
[TimeControl "5400+30"]

1. e4 {[%emt 0:02:30]} c6 {[%emt 0:01:00]} 2. d4 {[%emt 0:00:30]} d5 {[%emt 0:00:30]} 3. exd5 {[%emt 0:00:30]} cxd5 {[%emt 0:00:30]} 4. Bd3 {[%emt 0:00:00]} Nc6 {[%emt 0:00:00]} 5. Nf3 {[%emt 0:01:00]} Bg4 {[%emt 0:00:00]} 6. c3 {[%emt 0:00:30]} Qc7 {[%emt 0:00:30]} 7. Nbd2 {[%emt 0:02:30]} e6 {[%emt 0:00:30]} 8. h3 {[%emt 0:05:30]} Bh5 {[%emt 0:00:00]} 9. Qa4 {[%emt 0:02:30]} Bd6 {[%emt 0:03:00]} 10. b4 {[%emt 0:02:30]} Nf6 {[%emt 0:22:30]} 11. b5 {[%emt 0:00:30]} Qa5 {[%emt 0:00:30]} 12. Qc2 {[%emt 0:00:00]} Ne7 {[%emt 0:00:30]} 13. a4 {[%emt 0:02:00]} Rc8 {[%emt 0:02:30]} 14. Bb2 {[%emt 0:00:30]} O-O {[%emt 0:00:30]} 15. Ne5 {[%emt 0:01:30]} Bg6 {[%emt 0:02:30]} 16. Nxg6 {[%emt 0:06:30]} Nxg6 {[%emt 0:01:30]} 17. Bxg6 {[%emt 0:02:30]} hxg6 {[%emt 0:00:00]} 18. O-O {[%emt 0:01:30]} e5 {[%emt 0:04:00]} 19. c4 {[%emt 0:06:30]} exd4 {[%emt 0:07:30]} 20. Bxd4 {[%emt 0:03:30]} dxc4 {[%emt 0:00:30]} 21. Nxc4 {[%emt 0:00:30]} Qb4 {[%emt 0:01:30]} 22. Rfc1 {[%emt 0:06:30]} Bf4 {[%emt 0:00:30]} 23. Qc3 {[%emt 0:00:30]} Qxc3 {[%emt 0:08:30]} 24. Rxc3 {[%emt 0:00:30]} Nd5 {[%emt 0:03:30]} 25. Rc2 {[%emt 0:00:30]} Rfd8 {[%emt 0:05:30]} 26. Rb1 {[%emt 0:25:30]} b6 {[%emt 0:12:30]} 27. g3 {[%emt 0:01:30]} Bb8 {[%emt 0:01:30]} 28. Ne3 {[%emt 0:02:30]} Rxc2 {[%emt 0:07:58]} 29. Nxc2 {[%emt 0:00:30]} Bd6 {[%emt 0:02:36]} 30. a5 {[%emt 0:01:30]} Rd7 {[%emt 0:04:17]} 31. axb6 {[%emt 0:03:03]} axb6 {[%emt 0:00:30]} 32. Ne3 {[%emt 0:00:05]} Nxe3 {[%emt 0:03:02]} 33. Bxe3 {[%emt 0:00:22]} Bc5 {[%emt 0:00:45]} 34. Bxc5 {[%emt 0:01:49]} bxc5 {[%emt 0:00:03]} 35. Rc1 {[%emt 0:01:11]} Rc7 {[%emt 0:00:52]} 36. Kf1 {[%emt 0:00:29]} c4 {[%emt 0:01:12]} 37. Ke2 {[%emt 0:06:09]} Rc5 {[%emt 0:01:20]} 38. Rb1 {[%emt 0:04:15]} c3 {[%emt 0:00:30]} 39. b6 {[%emt 0:00:00]} c2 {[%emt 0:00:35]} 40. Rc1 {[%emt 0:00:07]} Rb5 {[%emt 0:00:00]} 41. Rxc2 {[%emt 0:00:32]} Rxb6 {[%emt 0:00:00]} 1/2-1/2

[Event "6th Cesme Open-A 2018"]
[Site "Cesme"]
[Date "2018.06.29"]
[Round "6.17"]
[White "Gulbeyaz, Emir"]
[Black "Kamer, Kayra"]
[Result "0-1"]
[ECO "D02"]
[WhiteElo "2074"]
[BlackElo "2181"]
[Annotator "NA"]
[PlyCount "104"]
[EventDate "2018.06.26"]
[EventType "swiss"]
[EventCountry "TUR"]
[SourceTitle "playchess.com"]
[Source "ChessBase"]
[SourceQuality "1"]
[TimeControl "5400+30"]

1. d4 {[%emt 0:06:30]} Nf6 {[%emt 0:01:00]} 2. Bf4 {[%emt 0:01:30]} e6 {[%emt 0:01:30]} 3. Nf3 {[%emt 0:00:30]} c5 {[%emt 0:00:00]} 4. e3 {[%emt 0:00:30]} d5 {[%emt 0:00:00]} 5. c3 {[%emt 0:01:30]} Bd6 {[%emt 0:00:30]} 6. Bxd6 {[%emt 0:00:30]} Qxd6 {[%emt 0:00:30]} 7. Bd3 {[%emt 0:00:00]} Nbd7 {[%emt 0:00:30]} 8. Nbd2 {[%emt 0:00:00]} O-O {[%emt 0:01:30]} 9. O-O {[%emt 0:00:00]} e5 {[%emt 0:01:30]} 10. dxe5 {[%emt 0:03:00]} Nxe5 {[%emt 0:00:30]} 11. Nxe5 {[%emt 0:01:30]} Qxe5 {[%emt 0:00:00]} 12. Qc2 {[%emt 0:00:00]} Bg4 {[%emt 0:06:00]} 13. Rfe1 {[%emt 0:02:00]} Rfe8 {[%emt 0:07:30]} 14. b3 {[%emt 0:13:30]} Bd7 {[%emt 0:02:30]} 15. e4 {[%emt 0:00:30]} Bc6 {[%emt 0:01:30]} 16. Nf3 {[%emt 0:02:30]} Qh5 {[%emt 0:03:30]} 17. e5 {[%emt 0:01:30]} Ng4 {[%emt 0:01:30]} 18. Bf5 {[%emt 0:03:30]} d4 {[%emt 0:04:30]} 19. Be4 {[%emt 0:01:30]} Nxe5 {[%emt 0:04:30]} 20. Nxe5 {[%emt 0:01:30]} Rxe5 {[%emt 0:00:30]} 21. cxd4 {[%emt 0:00:30]} Rxe4 {[%emt 0:15:30]} 22. Rxe4 {[%emt 0:00:30]} Qg6 {[%emt 0:00:00]} 23. Rae1 {[%emt 0:00:30]} cxd4 {[%emt 0:02:00]} 24. g3 {[%emt 0:01:30]} Bxe4 {[%emt 0:00:30]} 25. Qxe4 {[%emt 0:00:30]} Qxe4 {[%emt 0:00:30]} 26. Rxe4 {[%emt 0:00:30]} Rd8 {[%emt 0:00:30]} 27. Kf1 {[%emt 0:00:30]} Kf8 {[%emt 0:00:30]} 28. Ke2 {[%emt 0:00:30]} d3+ {[%emt 0:00:30]} 29. Kd2 {[%emt 0:00:30]} Rd6 {[%emt 0:00:30]} 30. Rc4 {[%emt 0:00:30]} Ke8 {[%emt 0:00:30]} 31. Rc8+ {[%emt 0:00:30]} Kd7 {[%emt 0:00:30]} 32. Rc3 {[%emt 0:00:30]} Ke6 {[%emt 0:00:30]} 33. Rxd3 {[%emt 0:00:30]} Rxd3+ {[%emt 0:00:30]} 34. Kxd3 {[%emt 0:00:30]} Kd5 {[%emt 0:00:30]} 35. f3 {[%emt 0:00:30]} g5 {[%emt 0:00:30]} 36. h3 {[%emt 0:00:30]} b5 {[%emt 0:26:50]} 37. Kc3 {[%emt 0:07:30]} Kc5 {[%emt 0:01:02]} 38. Kd3 {[%emt 0:01:30]} Kb4 {[%emt 0:01:40]} 39. Kc2 {[%emt 0:00:30]} Ka3 {[%emt 0:00:30]} 40. Kb1 {[%emt 0:00:00]} f5 {[%emt 0:01:19]} 41. g4 {[%emt 0:09:00]} f4 {[%emt 0:01:33]} 42. Ka1 {[%emt 0:00:30]} a5 {[%emt 0:01:23]} 43. Kb1 {[%emt 0:00:30]} a4 {[%emt 0:00:00]} 44. bxa4 {[%emt 0:02:30]} bxa4 {[%emt 0:00:00]} 45. Ka1 {[%emt 0:00:30]} Kb4 {[%emt 0:00:26]} 46. Kb2 {[%emt 0:00:30]} a3+ {[%emt 0:00:00]} 47. Kc2 {[%emt 0:00:30]} Kc4 {[%emt 0:00:14]} 48. Kd2 {[%emt 0:00:30]} Kd4 {[%emt 0:00:30]} 49. Ke2 {[%emt 0:00:00]} Kc3 {[%emt 0:00:00]} 50. Ke1 {[%emt 0:00:00]} Kb2 {[%emt 0:00:34]} 51. Kd1 {[%emt 0:00:00]} Kxa2 {[%emt 0:00:00]} 52. Kc2 {[%emt 0:00:00]} h6 {[%emt 0:00:12]} 0-1

[Event "6th Cesme Open-A 2018"]
[Site "Cesme"]
[Date "2018.06.29"]
[Round "6.19"]
[White "Rzayev, Bahruz"]
[Black "Oz, Ozan"]
[Result "1-0"]
[ECO "A07"]
[WhiteElo "2405"]
[BlackElo "1947"]
[Annotator "ChessBase"]
[PlyCount "53"]
[EventDate "2018.06.26"]
[EventType "swiss"]
[EventCountry "TUR"]
[SourceTitle "playchess.com"]
[Source "ChessBase"]
[SourceQuality "1"]
[TimeControl "5400+30"]

1. Nf3 {[%emt 0:02:30]} d5 {[%emt 0:01:00]} 2. g3 {[%emt 0:00:30]} Nf6 {[%emt 0:00:30]} 3. Bg2 {[%emt 0:00:30]} c6 {[%emt 0:00:30]} 4. O-O {[%emt 0:00:30]} Bf5 {[%emt 0:00:30]} 5. b3 {[%emt 0:00:30]} h6 {[%emt 0:00:30]} 6. Bb2 {[%emt 0:00:30]} e6 {[%emt 0:00:30]} 7. d3 {[%emt 0:00:30]} Be7 {[%emt 0:00:30]} 8. Nbd2 {[%emt 0:00:30]} O-O {[%emt 0:00:00]} 9. Qe1 {[%emt 0:02:30]} a5 {[%emt 0:00:00]} 10. e4 {[%emt 0:00:30]} Bh7 {[%emt 0:00:30]} 11. a3 {[%emt 0:01:30]} Re8 {[%emt 0:02:30]} 12. Qe2 {[%emt 0:00:30]} c5 {[%emt 0:15:30]} 13. Ne5 {[%emt 0:04:30]} Nc6 {[%emt 0:00:30]} 14. Nxc6 {[%emt 0:00:30]} bxc6 {[%emt 0:00:30]} 15. a4 {[%emt 0:00:30]} Qb6 {[%emt 0:02:30]} 16. Kh1 {[%emt 0:00:30]} Nd7 {[%emt 0:08:30]} 17. f4 {[%emt 0:01:30]} Qc7 {[%emt 0:01:30]} 18. g4 {[%emt 0:03:30]} f6 {[%emt 0:02:30]} 19. Rae1 {[%emt 0:05:30]} Bd6 {[%emt 0:02:30]} 20. Qf3 {[%emt 0:05:30]} Rab8 {[%emt 0:03:30]} 21. h4 {[%emt 0:04:30]} f5 {[%emt 0:03:30]} 22. gxf5 {[%emt 0:00:30]} exf5 {[%emt 0:00:30]} 23. exd5 {[%emt 0:00:30]} Rxe1 {[%emt 0:00:30]} 24. Rxe1 {[%emt 0:00:30]} Bxf4 {[%emt 0:00:30]} 25. Re7 {[%emt 0:00:30]} Kf8 {[%emt 0:06:30]} 26. Rxg7 {[%emt 0:00:30]} Ne5 {[%emt 0:12:30]} 27. Qxf4 {[%emt 0:00:30]} 1-0

[Event "6th Cesme Open-A 2018"]
[Site "Cesme"]
[Date "2018.06.30"]
[Round "7.2"]
[White "Rasulov, Vugar"]
[Black "Sanal, Vahap"]
[Result "1-0"]
[ECO "E17"]
[WhiteElo "2516"]
[BlackElo "2510"]
[Annotator "ChessBase"]
[PlyCount "131"]
[EventDate "2018.06.26"]
[EventType "swiss"]
[EventCountry "TUR"]
[SourceTitle "playchess.com"]
[Source "ChessBase"]
[SourceQuality "1"]
[TimeControl "5400+30"]

1. d4 {[%emt 0:01:30]} Nf6 {[%emt 0:06:30]} 2. c4 {[%emt 0:00:30]} e6 {[%emt 0:00:30]} 3. Nf3 {[%emt 0:00:30]} b6 {[%emt 0:00:30]} 4. g3 {[%emt 0:00:30]} Bb7 {[%emt 0:00:30]} 5. Bg2 {[%emt 0:00:30]} Be7 {[%emt 0:00:30]} 6. O-O {[%emt 0:00:00]} O-O {[%emt 0:00:00]} 7. Re1 {[%emt 0:00:00]} Na6 {[%emt 0:00:00]} 8. a3 {[%emt 0:00:30]} c5 {[%emt 0:03:30]} 9. d5 {[%emt 0:01:30]} d6 {[%emt 0:02:30]} 10. Nc3 {[%emt 0:01:30]} e5 {[%emt 0:00:30]} 11. e4 {[%emt 0:05:30]} Nc7 {[%emt 0:03:30]} 12. b4 {[%emt 0:00:30]} Nd7 {[%emt 0:04:30]} 13. Rb1 {[%emt 0:00:30]} Bc8 {[%emt 0:06:30]} 14. Be3 {[%emt 0:03:30]} g6 {[%emt 0:02:30]} 15. Bh6 {[%emt 0:02:30]} Re8 {[%emt 0:00:30]} 16. h3 {[%emt 0:02:30]} Bf8 {[%emt 0:02:30]} 17. Qd2 {[%emt 0:01:30]} Bxh6 {[%emt 0:01:30]} 18. Qxh6 {[%emt 0:00:30]} Qf6 {[%emt 0:04:30]} 19. Nd2 {[%emt 0:03:30]} Qg7 {[%emt 0:07:30]} 20. Qxg7+ {[%emt 0:05:30]} Kxg7 {[%emt 0:00:00]} 21. Nb5 {[%emt 0:00:30]} Nxb5 {[%emt 0:01:00]} 22. cxb5 {[%emt 0:00:30]} Kf8 {[%emt 0:01:30]} 23. Nc4 {[%emt 0:01:30]} Ke7 {[%emt 0:00:30]} 24. f4 {[%emt 0:00:30]} f6 {[%emt 0:00:30]} 25. h4 {[%emt 0:01:30]} cxb4 {[%emt 0:19:30]} 26. axb4 {[%emt 0:00:00]} Nf8 {[%emt 0:01:30]} 27. Bf1 {[%emt 0:05:00]} Bd7 {[%emt 0:03:30]} 28. Ra1 {[%emt 0:00:00]} Reb8 {[%emt 0:14:53]} 29. Ra3 {[%emt 0:04:00]} Rb7 {[%emt 0:00:57]} 30. Rea1 {[%emt 0:00:30]} Be8 {[%emt 0:00:30]} 31. Kf2 {[%emt 0:00:30]} Bd7 {[%emt 0:00:57]} 32. Bd3 {[%emt 0:04:30]} Be8 {[%emt 0:00:29]} 33. Ke3 {[%emt 0:01:30]} Nd7 {[%emt 0:02:16]} 34. Kd2 {[%emt 0:00:30]} Rc7 {[%emt 0:02:26]} 35. Ne3 {[%emt 0:01:30]} Bf7 {[%emt 0:00:37]} 36. h5 {[%emt 0:00:30]} Be8 {[%emt 0:01:34]} 37. h6 {[%emt 0:02:30]} Bf7 {[%emt 0:00:15]} 38. Bf1 {[%emt 0:02:30]} Be8 {[%emt 0:00:49]} 39. Bh3 {[%emt 0:01:30]} Nb8 {[%emt 0:00:18]} 40. fxe5 {[%emt 0:02:30]} fxe5 {[%emt 0:00:30]} 41. Bf1 {[%emt 0:00:30]} Nd7 {[%emt 0:00:20]} 42. Bd3 {[%emt 0:00:30]} Nf6 {[%emt 0:01:33]} 43. Ra6 {[%emt 0:00:30]} Rb7 {[%emt 0:00:28]} 44. g4 {[%emt 0:01:30]} Bd7 {[%emt 0:00:02]} 45. g5 {[%emt 0:01:30]} Ne8 {[%emt 0:00:02]} 46. R6a3 {[%emt 0:02:30]} Nc7 {[%emt 0:00:19]} 47. Rc3 {[%emt 0:02:30]} Rf8 {[%emt 0:02:24]} 48. Rac1 {[%emt 0:00:30]} Kd8 {[%emt 0:00:11]} 49. Rf1 {[%emt 0:05:30]} Rxf1 {[%emt 0:02:18]} 50. Bxf1 {[%emt 0:00:30]} Rb8 {[%emt 0:00:30]} 51. Be2 {[%emt 0:00:30]} Nxb5 {[%emt 0:00:30]} 52. Bxb5 {[%emt 0:00:30]} Bxb5 {[%emt 0:00:30]} 53. Ng4 {[%emt 0:00:30]} a5 {[%emt 0:00:30]} 54. Rf3 {[%emt 0:00:30]} Ke7 {[%emt 0:00:30]} 55. Nf6 {[%emt 0:00:30]} axb4 {[%emt 0:00:30]} 56. Rb3 {[%emt 0:00:30]} Bc4 {[%emt 0:00:30]} 57. Rxb4 {[%emt 0:00:30]} b5 {[%emt 0:00:30]} 58. Nxh7 {[%emt 0:00:30]} Ra8 {[%emt 0:00:30]} 59. Nf6 {[%emt 0:00:30]} Ra2+ {[%emt 0:00:30]} 60. Ke3 {[%emt 0:00:30]} Ra1 {[%emt 0:00:30]} 61. h7 {[%emt 0:00:30]} Rh1 {[%emt 0:00:30]} 62. Rb1 {[%emt 0:07:30]} Rh3+ {[%emt 0:02:20]} 63. Kd2 {[%emt 0:00:30]} Rh2+ {[%emt 0:00:13]} 64. Kc3 {[%emt 0:00:30]} Rh3+ {[%emt 0:00:30]} 65. Kb4 {[%emt 0:00:00]} Kf7 {[%emt 0:00:00]} 66. Ra1 {[%emt 0:00:00]} 1-0